fUSD/lending_fUSD_20260521
["ID","MTS","AMOUNT","RATE_DAILY","PERIOD"]
[422759407,1779371491000,-835.0,0.00038356,30]
[422759422,1779371491000,-164.85263737,0.00038356,120]
[422759421,1779371491000,-182.76555428,0.00038356,120]
[422759420,1779371491000,-155.68011157,0.00038356,120]
[422759419,1779371491000,-863.36,0.00038356,120]
[422759416,1779371491000,-2222.0,0.00038356,120]
[422759417,1779371491000,-1000.0,0.00038356,120]
[422759418,1779371491000,-151.51439394,0.00038356,120]
[422759414,1779371491000,-840.66246715,0.00038356,30]
[422759404,1779371491000,-835.0,0.00038356,30]
[422759413,1779371491000,-835.0,0.00038356,30]
[422759412,1779371491000,-835.0,0.00038356,30]
[422759411,1779371491000,-835.0,0.00038356,30]
[422759409,1779371491000,-835.0,0.00038356,30]
[422759408,1779371491000,-835.0,0.00038356,30]
[422759410,1779371491000,-835.0,0.00038356,30]
[422759405,1779371491000,-835.0,0.00038356,30]
[422759406,1779371491000,-835.0,0.00038356,30]
[422759415,1779371491000,-151.00247289,0.00038356,48]
[422759434,1779371492000,-5385.36622,0.00038413,30]
[422759437,1779371492000,-2000.0,0.000385,120]
[422759436,1779371492000,-2000.0,0.000385,120]
[422759439,1779371492000,-2000.0,0.000385,120]
[422759438,1779371492000,-5000.0,0.000385,120]
[422759432,1779371492000,-358.21,0.000384,120]
[422759440,1779371492000,-2000.0,0.000385,120]
[422759435,1779371492000,-505.81875527,0.00038472,120]
[422759428,1779371492000,-231.1,0.0003838,105]
[422759430,1779371492000,-1137.62,0.00038393,30]
[422759431,1779371492000,-151.0,0.000384,120]
[422759429,1779371492000,-1017.72,0.00038392,30]
[422759427,1779371492000,-505.74,0.00038372,120]
[422759424,1779371492000,-169.47089866,0.00038356,120]
[422759426,1779371492000,-1364.84,0.00038356,120]
[422759425,1779371492000,-741.21,0.00038356,30]
[422759442,1779371492000,-2000.0,0.000385,120]
[422759433,1779371492000,-1641.91,0.000384,90]
[422759423,1779371492000,-169.47089867,0.00038356,120]
[422759443,1779371492000,-2000.0,0.000385,120]
[422759444,1779371492000,-2000.0,0.000385,120]
[422759461,1779371492000,-345.1827,0.000386,120]
[422759441,1779371492000,-3000.0,0.000385,120]
[422759460,1779371492000,-153.0,0.000385,120]
[422759457,1779371492000,-2000.0,0.000385,120]
[422759458,1779371492000,-881.0,0.000385,120]
[422759459,1779371492000,-50000.0,0.000385,31]
[422759456,1779371492000,-2000.0,0.000385,120]
[422759453,1779371492000,-2000.0,0.000385,120]
[422759454,1779371492000,-2000.0,0.000385,120]
[422759462,1779371492000,-4381.16715759,0.00038607,120]
[422759452,1779371492000,-2000.0,0.000385,120]
[422759451,1779371492000,-2000.0,0.000385,120]
[422759449,1779371492000,-2000.0,0.000385,120]
[422759450,1779371492000,-2000.0,0.000385,120]
[422759447,1779371492000,-2000.0,0.000385,120]
[422759448,1779371492000,-2000.0,0.000385,120]
[422759445,1779371492000,-2000.0,0.000385,120]
[422759446,1779371492000,-2000.0,0.000385,120]
[422759455,1779371492000,-2000.0,0.000385,120]
[422759476,1779371493000,-1000.0,0.00038783,30]
[422759475,1779371493000,-860.51,0.00038783,30]
[422759472,1779371493000,-157.90900178,0.0003875,120]
[422759474,1779371493000,-2000.0,0.00038783,30]
[422759473,1779371493000,-164.37117828,0.00038778,120]
[422759471,1779371493000,-205.95,0.00038746,30]
[422759469,1779371493000,-224.58,0.00038746,30]
[422759465,1779371493000,-1779116.8328,0.0003864,30]
[422759468,1779371493000,-238.66,0.00038746,30]
[422759467,1779371493000,-584.22,0.00038746,30]
[422759466,1779371493000,-2777.31874111,0.00038678,30]
[422759463,1779371493000,-164.85263737,0.0003863,120]
[422759464,1779371493000,-150.0,0.00038632,60]
[422759477,1779371493000,-538.33,0.00038783,30]
[422759470,1779371493000,-212.65,0.00038746,30]
[422759478,1779371493000,-1503.15,0.000388,60]
[422759479,1779371493000,-1503.15,0.000388,60]
[422759496,1779371493000,-231.1,0.0003892,116]
[422759493,1779371493000,-1141.1,0.000389,120]
[422759494,1779371493000,-400.0,0.000389,30]
[422759495,1779371493000,-164.85263737,0.00038904,120]
[422759492,1779371493000,-151.0,0.000389,120]
[422759490,1779371493000,-33073.41043802,0.0003888,60]
[422759491,1779371493000,-359.646,0.000389,120]
[422759489,1779371493000,-27193.0,0.0003888,30]
[422759480,1779371493000,-269089.0,0.000388,30]
[422759487,1779371493000,-1464.26305888,0.00038841,105]
[422759488,1779371493000,-469515.57800365,0.0003888,60]
[422759485,1779371493000,-150.0,0.00038825,30]
[422759483,1779371493000,-150.0,0.00038825,30]
[422759484,1779371493000,-4319.90967139,0.00038825,30]
[422759482,1779371493000,-724.38530794,0.00038825,30]
[422759481,1779371493000,-150.0,0.00038825,30]
[422759486,1779371493000,-503.62790582,0.00038825,30]
[422759512,1779371494000,-243.8,0.00039,120]
[422759510,1779371494000,-500.56174788,0.00039,60]
[422759509,1779371494000,-328.56524954,0.00039,30]
[422759508,1779371494000,-602.0,0.00039,120]
[422759507,1779371494000,-2000.0,0.00039,30]
[422759506,1779371494000,-157.53720737,0.00039,120]
[422759505,1779371494000,-1353.0,0.00039,90]
[422759501,1779371494000,-100323.0,0.00039,90]
[422759503,1779371494000,-8145.62863666,0.00039,30]
[422759502,1779371494000,-208.50687379,0.00039,90]
[422759499,1779371494000,-402.87892549,0.00039,60]
[422759500,1779371494000,-34599.0,0.00039,30]
[422759497,1779371494000,-5100.0,0.00038932,30]
[422759498,1779371494000,-50000.0,0.00039,36]
[422759511,1779371494000,-437.0,0.00039,120]
[422759504,1779371494000,-322.0,0.00039,120]
[422759513,1779371494000,-534.18718,0.00039,120]
[422759514,1779371494000,-10000.0,0.00039,30]
[422759533,1779371494000,-2439.0,0.00039,30]
[422759517,1779371494000,-13674.72431538,0.00039,120]
[422759531,1779371494000,-194.5,0.00039,60]
[422759530,1779371494000,-500.0,0.00039,120]
[422759532,1779371494000,-709.0,0.00039,30]
[422759529,1779371494000,-194.09605584,0.00039,120]
[422759528,1779371494000,-1065.13760025,0.00039,120]
[422759526,1779371494000,-179755.08486883,0.00039,60]
[422759525,1779371494000,-670.0,0.00039,120]
[422759527,1779371494000,-1240.0,0.00039,120]
[422759524,1779371494000,-7771.0,0.00039,120]
[422759523,1779371494000,-5380.27995392,0.00039,120]
[422759515,1779371494000,-2154.0,0.00039,30]
[422759518,1779371494000,-10050.0,0.00039,120]
[422759520,1779371494000,-178.03830348,0.00039,120]
[422759516,1779371494000,-181.96431719,0.00039,30]
[422759521,1779371494000,-40000.0,0.00039,30]
[422759522,1779371494000,-634.19097791,0.00039,60]
[422759519,1779371494000,-5000.0,0.00039,120]
[422759542,1779371495000,-957.74820633,0.000391,30]
[422759549,1779371495000,-378.0,0.00039178,120]
[422759548,1779371495000,-164.85263737,0.00039178,120]
[422759547,1779371495000,-2613.01259432,0.00039178,60]
[422759545,1779371495000,-250.0,0.00039178,120]
[422759546,1779371495000,-1992.72690193,0.00039178,60]
[422759544,1779371495000,-337.46,0.00039171,30]
[422759543,1779371495000,-164.37117828,0.00039143,120]
[422759550,1779371495000,-156.0,0.000392,120]
[422759540,1779371495000,-310.0,0.00039041,120]
[422759539,1779371495000,-153.0,0.00039026,120]
[422759537,1779371495000,-5000.0,0.00039024,30]
[422759538,1779371495000,-153.0,0.00039026,120]
[422759536,1779371495000,-482.34,0.00039009,120]
[422759534,1779371495000,-355.0,0.00039,30]
[422759535,1779371495000,-3681.90411968,0.00039,120]
[422759541,1779371495000,-5172.90664916,0.00039041,120]
[422759551,1779371495000,-2006.0,0.000392,120]
[422759569,1779371495000,-3000.0,0.0003932,30]
[422759554,1779371495000,-493.86,0.00039243,120]
[422759552,1779371495000,-303.10722219,0.00039214,60]
[422759567,1779371495000,-12707.9013,0.000393,120]
[422759568,1779371495000,-3000.0,0.0003932,30]
[422759566,1779371495000,-1462.92,0.000393,60]
[422759564,1779371495000,-300000.0,0.000393,120]
[422759562,1779371495000,-251.15942595,0.00039283,120]
[422759565,1779371495000,-224568.09,0.000393,120]
[422759563,1779371495000,-151.0,0.000393,120]
[422759559,1779371495000,-4381.16715759,0.00039266,120]
[422759561,1779371495000,-20000.0,0.00039279,30]
[422759558,1779371495000,-2972.25,0.00039243,120]
[422759557,1779371495000,-9954.37,0.00039243,120]
[422759556,1779371495000,-213.76,0.00039243,120]
[422759555,1779371495000,-2295.03,0.00039243,120]
[422759553,1779371495000,-150.0,0.00039215,120]
[422759560,1779371495000,-10000.0,0.00039279,30]
[422759580,1779371496000,-900.0,0.00039322,60]
[422759586,1779371496000,-164.85263737,0.00039452,120]
[422759582,1779371496000,-366.608889,0.00039382,46]
[422759583,1779371496000,-32832.72354653,0.00039383,50]
[422759584,1779371496000,-520.0,0.000394,30]
[422759581,1779371496000,-273.63073,0.00039382,46]
[422759579,1779371496000,-2987.76,0.0003932,30]
[422759577,1779371496000,-3000.0,0.0003932,30]
[422759585,1779371496000,-150.0,0.00039441,120]
[422759574,1779371496000,-3000.0,0.0003932,30]
[422759576,1779371496000,-3000.0,0.0003932,30]
[422759575,1779371496000,-3000.0,0.0003932,30]
[422759573,1779371496000,-3000.0,0.0003932,30]
[422759570,1779371496000,-3000.0,0.0003932,30]
[422759572,1779371496000,-3000.0,0.0003932,30]
[422759571,1779371496000,-3000.0,0.0003932,30]
[422759578,1779371496000,-3000.0,0.0003932,30]
[422759587,1779371496000,-398.98,0.00039456,120]
[422759604,1779371496000,-800.0,0.00039482,120]
[422759589,1779371496000,-162.00702584,0.00039475,120]
[422759588,1779371496000,-231.1,0.0003947,120]
[422759606,1779371496000,-800.0,0.00039482,120]
[422759603,1779371496000,-800.0,0.00039482,120]
[422759605,1779371496000,-800.0,0.00039482,120]
[422759600,1779371496000,-800.0,0.00039482,120]
[422759602,1779371496000,-800.0,0.00039482,120]
[422759599,1779371496000,-800.0,0.00039482,120]
[422759598,1779371496000,-50000.0,0.00039482,65]
[422759601,1779371496000,-800.0,0.00039482,120]
[422759597,1779371496000,-50000.0,0.00039482,64]
[422759593,1779371496000,-50000.0,0.00039482,60]
[422759594,1779371496000,-50000.0,0.00039482,61]
[422759592,1779371496000,-216.0,0.00039481,120]
[422759595,1779371496000,-50000.0,0.00039482,62]
[422759590,1779371496000,-237779.68271471,0.0003948,30]
[422759591,1779371496000,-212.0,0.00039481,120]
[422759596,1779371496000,-50000.0,0.00039482,63]
[422759617,1779371497000,-800.0,0.00039482,120]
[422759623,1779371497000,-800.0,0.00039482,120]
[422759622,1779371497000,-800.0,0.00039482,120]
[422759620,1779371497000,-800.0,0.00039482,120]
[422759619,1779371497000,-800.0,0.00039482,120]
[422759618,1779371497000,-800.0,0.00039482,120]
[422759614,1779371497000,-800.0,0.00039482,120]
[422759608,1779371497000,-800.0,0.00039482,120]
[422759615,1779371497000,-800.0,0.00039482,120]
[422759613,1779371497000,-800.0,0.00039482,120]
[422759611,1779371497000,-800.0,0.00039482,120]
[422759612,1779371497000,-800.0,0.00039482,120]
[422759621,1779371497000,-800.0,0.00039482,120]
[422759609,1779371497000,-800.0,0.00039482,120]
[422759607,1779371497000,-800.0,0.00039482,120]
[422759616,1779371497000,-800.0,0.00039482,120]
[422759624,1779371497000,-800.0,0.00039482,120]
[422759610,1779371497000,-800.0,0.00039482,120]
[422759627,1779371497000,-800.0,0.00039482,120]
[422759626,1779371497000,-800.0,0.00039482,120]
[422759641,1779371497000,-800.0,0.00039482,120]
[422759643,1779371497000,-800.0,0.00039482,120]
[422759640,1779371497000,-800.0,0.00039482,120]
[422759642,1779371497000,-800.0,0.00039482,120]
[422759638,1779371497000,-800.0,0.00039482,120]
[422759639,1779371497000,-800.0,0.00039482,120]
[422759636,1779371497000,-800.0,0.00039482,120]
[422759637,1779371497000,-800.0,0.00039482,120]
[422759634,1779371497000,-800.0,0.00039482,120]
[422759635,1779371497000,-800.0,0.00039482,120]
[422759629,1779371497000,-800.0,0.00039482,120]
[422759628,1779371497000,-800.0,0.00039482,120]
[422759630,1779371497000,-800.0,0.00039482,120]
[422759625,1779371497000,-800.0,0.00039482,120]
[422759633,1779371497000,-800.0,0.00039482,120]
[422759632,1779371497000,-800.0,0.00039482,120]
[422759631,1779371497000,-800.0,0.00039482,120]
[422759654,1779371498000,-50000.0,0.00039482,67]
[422759658,1779371498000,-292.14543194,0.00039482,120]
[422759659,1779371498000,-500.0,0.00039482,120]
[422759656,1779371498000,-50000.0,0.00039482,69]
[422759657,1779371498000,-50000.0,0.00039482,70]
[422759655,1779371498000,-50000.0,0.00039482,68]
[422759652,1779371498000,-426.84560351,0.00039482,120]
[422759653,1779371498000,-50000.0,0.00039482,66]
[422759661,1779371498000,-500.0,0.00039482,120]
[422759650,1779371498000,-923.57988765,0.00039482,120]
[422759649,1779371498000,-800.0,0.00039482,120]
[422759648,1779371498000,-800.0,0.00039482,120]
[422759647,1779371498000,-800.0,0.00039482,120]
[422759645,1779371498000,-800.0,0.00039482,120]
[422759646,1779371498000,-800.0,0.00039482,120]
[422759644,1779371498000,-800.0,0.00039482,120]
[422759651,1779371498000,-1158.09040671,0.00039482,120]
[422759660,1779371498000,-500.0,0.00039482,120]
[422759681,1779371498000,-500.0,0.00039482,120]
[422759665,1779371498000,-500.0,0.00039482,120]
[422759662,1779371498000,-500.0,0.00039482,120]
[422759680,1779371498000,-500.0,0.00039482,120]
[422759679,1779371498000,-500.0,0.00039482,120]
[422759677,1779371498000,-500.0,0.00039482,120]
[422759678,1779371498000,-500.0,0.00039482,120]
[422759675,1779371498000,-500.0,0.00039482,120]
[422759673,1779371498000,-500.0,0.00039482,120]
[422759674,1779371498000,-500.0,0.00039482,120]
[422759676,1779371498000,-500.0,0.00039482,120]
[422759670,1779371498000,-500.0,0.00039482,120]
[422759672,1779371498000,-500.0,0.00039482,120]
[422759664,1779371498000,-500.0,0.00039482,120]
[422759666,1779371498000,-500.0,0.00039482,120]
[422759667,1779371498000,-500.0,0.00039482,120]
[422759663,1779371498000,-500.0,0.00039482,120]
[422759668,1779371498000,-500.0,0.00039482,120]
[422759671,1779371498000,-500.0,0.00039482,120]
[422759669,1779371498000,-500.0,0.00039482,120]
[422759690,1779371499000,-236.0,0.00039483,120]
[422759682,1779371499000,-500.0,0.00039482,120]
[422759684,1779371499000,-520.0,0.00039482,120]
[422759683,1779371499000,-500.0,0.00039482,120]
[422759685,1779371499000,-599.35,0.00039482,120]
[422759686,1779371499000,-151.0,0.00039483,120]
[422759687,1779371499000,-509.0,0.00039483,120]
[422759688,1779371499000,-1474.0,0.00039483,120]
[422759696,1779371499000,-841.0,0.00039494,120]
[422759691,1779371499000,-435.0,0.00039483,120]
[422759692,1779371499000,-214.0,0.00039483,120]
[422759693,1779371499000,-187.0,0.00039483,120]
[422759694,1779371499000,-151.0,0.00039483,120]
[422759697,1779371499000,-304.0,0.00039494,120]
[422759695,1779371499000,-496.16848296,0.00039486,120]
[422759698,1779371499000,-855.93,0.00039494,90]
[422759689,1779371499000,-180.0,0.00039483,120]
[422759702,1779371500000,-2155.12,0.000395,36]
[422759699,1779371500000,-1000.0,0.000395,30]
[422759701,1779371500000,-659.3955608,0.000395,120]
[422759703,1779371500000,-10000.0,0.000395,120]
[422759705,1779371500000,-20000.0,0.000395,30]
[422759706,1779371500000,-30721.25445862,0.000395,120]
[422759704,1779371500000,-30000.0,0.000395,120]
[422759700,1779371500000,-500.0,0.000395,120]
[422759707,1779371503000,-741.11,0.00027611,30]
[422759709,1779371503000,-741.11,0.00027794,30]
[422759710,1779371503000,-741.11,0.00027885,30]
[422759712,1779371503000,-741.11,0.00028068,30]
[422759711,1779371503000,-741.11,0.00027977,30]
[422759715,1779371503000,-151.0,0.00031741,30]
[422759714,1779371503000,-151.0,0.00030741,30]
[422759708,1779371503000,-741.11,0.00027702,30]
[422759716,1779371503000,-151.0,0.00032741,30]
[422759718,1779371503000,-151.0,0.00034741,30]
[422759719,1779371503000,-151.0,0.00035741,30]
[422759720,1779371503000,-930.07030826,0.000374,30]
[422759721,1779371503000,-450.0,0.00037511,30]
[422759722,1779371503000,-392.5436,0.00037512,120]
[422759723,1779371503000,-2331.42206059,0.0003864,120]
[422759717,1779371503000,-151.0,0.00033741,30]
[422759713,1779371503000,-151.0,0.00029741,30]
[422759732,1779371504000,-2024.55139695,0.00039589,120]
[422759736,1779371504000,-206.49672795,0.000396,30]
[422759737,1779371504000,-150.87474613,0.000396,30]
[422759735,1779371504000,-2000.35,0.000396,120]
[422759734,1779371504000,-700.0,0.000396,30]
[422759733,1779371504000,-2654.93990532,0.00039589,120]
[422759739,1779371504000,-168.07213987,0.000396,120]
[422759730,1779371504000,-296.97,0.00039544,30]
[422759728,1779371504000,-445.5,0.00039532,30]
[422759729,1779371504000,-197.96,0.00039536,30]
[422759727,1779371504000,-200.0,0.00039524,120]
[422759725,1779371504000,-164.37117828,0.00039508,120]
[422759726,1779371504000,-2821.62,0.0003952,120]
[422759724,1779371504000,-38200.74554138,0.000395,120]
[422759731,1779371504000,-398.98,0.00039556,120]
[422759738,1779371504000,-215.25384647,0.000396,60]
[422759747,1779371504000,-5686.2465065,0.00039619,120]
[422759740,1779371504000,-500.0,0.00039614,30]
[422759741,1779371504000,-500.0,0.00039614,30]
[422759755,1779371504000,-5686.24650649,0.00039619,120]
[422759756,1779371504000,-5686.24650649,0.00039619,120]
[422759754,1779371504000,-5686.24650649,0.00039619,120]
[422759750,1779371504000,-5686.2465065,0.00039619,120]
[422759753,1779371504000,-5686.2465065,0.00039619,120]
[422759751,1779371504000,-5686.2465065,0.00039619,120]
[422759752,1779371504000,-5686.2465065,0.00039619,120]
[422759748,1779371504000,-5686.2465065,0.00039619,120]
[422759746,1779371504000,-5686.2465065,0.00039619,120]
[422759745,1779371504000,-325.37,0.00039614,30]
[422759743,1779371504000,-325.37,0.00039614,30]
[422759744,1779371504000,-500.0,0.00039614,30]
[422759742,1779371504000,-500.0,0.00039614,30]
[422759749,1779371504000,-5686.2465065,0.00039619,120]
[422759766,1779371505000,-500.0,0.00039628,30]
[422759771,1779371505000,-233.42357293,0.00039648,120]
[422759769,1779371505000,-500.0,0.00039628,30]
[422759770,1779371505000,-238.33,0.00039628,30]
[422759772,1779371505000,-398.98,0.00039656,120]
[422759767,1779371505000,-500.0,0.00039628,30]
[422759768,1779371505000,-500.0,0.00039628,30]
[422759759,1779371505000,-4745.11072443,0.00039621,120]
[422759764,1779371505000,-500.0,0.00039628,30]
[422759762,1779371505000,-500.0,0.00039628,30]
[422759763,1779371505000,-500.0,0.00039628,30]
[422759760,1779371505000,-500.0,0.00039628,30]
[422759758,1779371505000,-5686.24650649,0.00039619,120]
[422759761,1779371505000,-500.0,0.00039628,30]
[422759774,1779371505000,-202700.0,0.000397,120]
[422759757,1779371505000,-5686.24650649,0.00039619,120]
[422759765,1779371505000,-500.0,0.00039628,30]
[422759775,1779371505000,-1120.0,0.000397,30]
[422759778,1779371505000,-5010.0,0.000397,117]
[422759776,1779371505000,-1178.53265431,0.000397,30]
[422759793,1779371505000,-300.0,0.00039726,120]
[422759791,1779371505000,-300.0,0.00039726,120]
[422759792,1779371505000,-300.0,0.00039726,120]
[422759790,1779371505000,-300.0,0.00039726,120]
[422759788,1779371505000,-300.0,0.00039726,120]
[422759773,1779371505000,-284.69,0.00039688,120]
[422759787,1779371505000,-6565.78,0.00039726,60]
[422759786,1779371505000,-18229.88,0.00039726,60]
[422759789,1779371505000,-300.0,0.00039726,120]
[422759785,1779371505000,-50000.0,0.00039726,60]
[422759780,1779371505000,-1000.0,0.00039726,120]
[422759783,1779371505000,-50000.0,0.00039726,30]
[422759782,1779371505000,-164.85263737,0.00039726,120]
[422759781,1779371505000,-2888.0,0.00039726,120]
[422759779,1779371505000,-250.0,0.00039726,120]
[422759777,1779371505000,-1467.71076691,0.000397,30]
[422759784,1779371505000,-19008.62,0.00039726,30]
[422759805,1779371506000,-1000.0,0.00039748,31]
[422759800,1779371506000,-300.0,0.00039726,120]
[422759803,1779371506000,-300.0,0.00039726,120]
[422759802,1779371506000,-300.0,0.00039726,120]
[422759801,1779371506000,-300.0,0.00039726,120]
[422759799,1779371506000,-300.0,0.00039726,120]
[422759812,1779371506000,-5686.2465065,0.00039756,120]
[422759797,1779371506000,-300.0,0.00039726,120]
[422759796,1779371506000,-300.0,0.00039726,120]
[422759795,1779371506000,-300.0,0.00039726,120]
[422759794,1779371506000,-300.0,0.00039726,120]
[422759804,1779371506000,-300.0,0.00039726,120]
[422759798,1779371506000,-300.0,0.00039726,120]
[422759806,1779371506000,-572.0,0.0003975,30]
[422759815,1779371506000,-5686.2465065,0.00039756,120]
[422759808,1779371506000,-384.79446574,0.00039753,120]
[422759807,1779371506000,-8321.35,0.0003975,120]
[422759820,1779371506000,-5686.24650649,0.00039756,120]
[422759817,1779371506000,-5686.2465065,0.00039756,120]
[422759818,1779371506000,-5686.24650649,0.00039756,120]
[422759816,1779371506000,-5686.2465065,0.00039756,120]
[422759821,1779371506000,-5686.24650649,0.00039756,120]
[422759819,1779371506000,-5686.24650649,0.00039756,120]
[422759813,1779371506000,-5686.2465065,0.00039756,120]
[422759811,1779371506000,-5686.2465065,0.00039756,120]
[422759822,1779371506000,-5686.24650649,0.00039756,120]
[422759809,1779371506000,-398.98,0.00039756,120]
[422759810,1779371506000,-5686.2465065,0.00039756,120]
[422759814,1779371506000,-5686.2465065,0.00039756,120]
[422759832,1779371507000,-20000.0,0.000398,120]
[422759836,1779371507000,-6000.0,0.000398,30]
[422759834,1779371507000,-6000.0,0.000398,30]
[422759835,1779371507000,-6000.0,0.000398,30]
[422759833,1779371507000,-6000.0,0.000398,30]
[422759831,1779371507000,-151.0,0.000398,120]
[422759830,1779371507000,-8004.10431037,0.000398,120]
[422759823,1779371507000,-2849.6027741,0.00039798,56]
[422759827,1779371507000,-10000.37033265,0.000398,30]
[422759828,1779371507000,-2642.11235807,0.000398,120]
[422759824,1779371507000,-10000.0,0.000398,30]
[422759826,1779371507000,-10000.0,0.000398,30]
[422759825,1779371507000,-27739.44045493,0.000398,120]
[422759837,1779371507000,-6000.0,0.000398,30]
[422759829,1779371507000,-3809.93496121,0.000398,90]
[422759839,1779371507000,-6000.0,0.000398,30]
[422759838,1779371507000,-6000.0,0.000398,30]
[422759856,1779371507000,-402.9,0.000398,120]
[422759840,1779371507000,-6000.0,0.000398,30]
[422759855,1779371507000,-665.99,0.000398,120]
[422759853,1779371507000,-352.65,0.000398,120]
[422759854,1779371507000,-150.04,0.000398,120]
[422759852,1779371507000,-9317.98,0.000398,120]
[422759849,1779371507000,-296.4500727,0.000398,120]
[422759851,1779371507000,-10551.8,0.000398,120]
[422759850,1779371507000,-221.61,0.000398,120]
[422759847,1779371507000,-6000.0,0.000398,30]
[422759846,1779371507000,-831.20696673,0.000398,120]
[422759844,1779371507000,-45761.91258433,0.000398,120]
[422759845,1779371507000,-4219587.80050215,0.000398,120]
[422759842,1779371507000,-5184.08950183,0.000398,30]
[422759843,1779371507000,-14565.999999,0.000398,120]
[422759841,1779371507000,-3785.44136736,0.000398,30]
[422759848,1779371507000,-180.0,0.000398,120]
[422759866,1779371508000,-329.22,0.000398,120]
[422759871,1779371508000,-578.9,0.000398,120]
[422759869,1779371508000,-792.76,0.000398,120]
[422759870,1779371508000,-451.56,0.000398,120]
[422759868,1779371508000,-764.8,0.000398,120]
[422759865,1779371508000,-250.0,0.000398,30]
[422759867,1779371508000,-218.0,0.000398,120]
[422759872,1779371508000,-1397.68,0.000398,120]
[422759864,1779371508000,-204.71,0.000398,120]
[422759862,1779371508000,-739.75,0.000398,120]
[422759859,1779371508000,-469.37,0.000398,120]
[422759860,1779371508000,-433.92,0.000398,120]
[422759861,1779371508000,-436.69,0.000398,120]
[422759858,1779371508000,-22500.0,0.000398,120]
[422759863,1779371508000,-383.54,0.000398,120]
[422759873,1779371508000,-427.08,0.000398,120]
[422759857,1779371508000,-246.39,0.000398,120]
[422759874,1779371508000,-12783.96616452,0.00039819,111]
[422759875,1779371508000,-565.62,0.00039839,120]
[422759890,1779371508000,-565.54,0.00039839,120]
[422759889,1779371508000,-565.54,0.00039839,120]
[422759888,1779371508000,-565.54,0.00039839,120]
[422759887,1779371508000,-565.54,0.00039839,120]
[422759884,1779371508000,-565.54,0.00039839,120]
[422759886,1779371508000,-565.54,0.00039839,120]
[422759885,1779371508000,-565.54,0.00039839,120]
[422759891,1779371508000,-398.98,0.00039856,120]
[422759881,1779371508000,-565.54,0.00039839,120]
[422759882,1779371508000,-565.54,0.00039839,120]
[422759880,1779371508000,-565.54,0.00039839,120]
[422759877,1779371508000,-565.54,0.00039839,120]
[422759879,1779371508000,-565.54,0.00039839,120]
[422759878,1779371508000,-565.54,0.00039839,120]
[422759876,1779371508000,-565.54,0.00039839,120]
[422759883,1779371508000,-565.54,0.00039839,120]
[422759907,1779371509000,-1555.5,0.00039872,30]
[422759904,1779371509000,-162.380719,0.00039872,57]
[422759905,1779371509000,-172.05904,0.00039872,57]
[422759903,1779371509000,-1068.11,0.00039872,30]
[422759902,1779371509000,-168.38880561,0.00039872,56]
[422759901,1779371509000,-200.0,0.00039872,55]
[422759897,1779371509000,-7965.41053267,0.00039872,55]
[422759895,1779371509000,-200.0,0.00039872,57]
[422759900,1779371509000,-2723.01164126,0.00039872,57]
[422759898,1779371509000,-200.0,0.00039872,56]
[422759896,1779371509000,-168.38880563,0.00039872,56]
[422759892,1779371509000,-7407.141672,0.00039872,57]